fUSD/lending_fUSD_20250118
["ID","MTS","AMOUNT","RATE_DAILY","PERIOD"]
[349423384,1737174645979,-27585.97580894,0.00020856,2]
[349423385,1737174645989,-393.44316032,0.00020864,2]
[349423386,1737174645999,-393.44316032,0.00020868,2]
[349423387,1737174646009,-1000.0,0.0002087,2]
[349423388,1737174646019,-150.0,0.00020873,2]
[349423389,1737174646031,-2139.53002163,0.00020884,2]
[349423390,1737174646043,-27585.97580894,0.00020885,2]
[349423391,1737174646053,-35466.85214756,0.00020887,2]
[349423392,1737174646063,-200.0,0.00020887,2]
[349423393,1737174646074,-3000.0,0.00020889,2]
[349423394,1737174646084,-7174.58421654,0.00020889,2]
[349423396,1737174646094,-3445.10427764,0.0002089,2]
[349423397,1737174646104,-2000.0,0.00020895,2]
[349423398,1737174646113,-2000.0,0.00020895,2]
[349423399,1737174646123,-500.0,0.00020895,2]
[349423400,1737174646132,-717.9,0.00020895,2]
[349423401,1737174646142,-1257.35,0.00020895,2]
[349423402,1737174646152,-1151.33,0.00020895,2]
[349423403,1737174646162,-1202.7,0.00020895,2]
[349423404,1737174646171,-500.0,0.00020895,2]
[349423405,1737174646181,-500.0,0.00020895,2]
[349423406,1737174646191,-519.19,0.00020895,2]
[349423407,1737174646200,-628.48,0.00020895,2]
[349423408,1737174646211,-500.0,0.00020895,2]
[349423409,1737174646220,-3032.53,0.00020895,2]
[349423410,1737174646230,-4149.44,0.00020895,2]
[349423411,1737174646240,-773.38,0.00020895,2]
[349423412,1737174646250,-4280.24,0.00020895,2]
[349423413,1737174646259,-2619.8,0.00020895,2]
[349423414,1737174646268,-500.0,0.00020895,2]
[349423415,1737174646278,-2280.07,0.00020895,2]
[349423416,1737174646289,-925.12,0.00020895,2]
[349423417,1737174646299,-500.0,0.00020895,2]
[349423418,1737174646309,-500.0,0.00020895,2]
[349423419,1737174646319,-908.58,0.00020895,2]
[349423420,1737174646328,-500.0,0.00020895,2]
[349423421,1737174646338,-500.0,0.00020895,2]
[349423422,1737174646347,-500.0,0.00020895,2]
[349423423,1737174646356,-504.73,0.00020895,2]
[349423424,1737174646366,-500.0,0.00020895,2]
[349423425,1737174646376,-500.0,0.00020895,2]
[349423426,1737174646386,-57495.14535727,0.00020895,2]
[349423427,1737174646395,-152.0,0.00020896,3]
[349423428,1737174646404,-500.0,0.00020896,2]
[349423429,1737174646414,-500.0,0.00020896,2]
[349423430,1737174646424,-500.0,0.00020896,2]
[349423431,1737174646433,-500.0,0.00020896,2]
[349423432,1737174646443,-152.66593926,0.00020896,2]
[349423433,1737174646452,-500.0,0.00020896,2]
[349423434,1737174646464,-500.0,0.00020896,2]
[349423435,1737174646474,-500.0,0.00020896,2]
[349423436,1737174646484,-500.0,0.00020896,2]
[349423437,1737174646493,-500.0,0.00020896,2]
[349423438,1737174646504,-500.0,0.00020896,2]
[349423439,1737174646514,-884.31,0.00020896,2]
[349423440,1737174646524,-500.0,0.00020896,2]
[349423441,1737174646536,-1280.37,0.00020896,2]
[349423442,1737174646546,-500.0,0.00020896,2]
[349423443,1737174646555,-500.0,0.00020896,2]
[349423444,1737174646565,-500.0,0.00020896,2]
[349423445,1737174646575,-500.0,0.00020896,2]
[349423446,1737174646585,-500.0,0.00020896,2]
[349423447,1737174646594,-500.0,0.00020896,2]
[349423449,1737174646604,-150.23224682,0.00020896,2]
[349423450,1737174646613,-500.0,0.00020896,2]
[349423451,1737174646623,-500.0,0.00020896,2]
[349423452,1737174646632,-500.0,0.00020896,2]
[349423453,1737174646648,-393.44316032,0.00020896,2]
[349423454,1737174646659,-2139.53002163,0.00020896,2]
[349423455,1737174646669,-500.0,0.00020897,2]
[349423456,1737174646681,-500.0,0.00020897,2]
[349423457,1737174646690,-500.0,0.00020897,2]
[349423458,1737174646699,-500.0,0.00020897,2]
[349423459,1737174646709,-500.0,0.00020897,2]
[349423460,1737174646719,-500.0,0.00020897,2]
[349423461,1737174646728,-500.0,0.00020897,2]
[349423462,1737174646738,-500.0,0.00020897,2]
[349423463,1737174646748,-500.0,0.00020897,2]
[349423464,1737174646758,-500.0,0.00020897,2]
[349423465,1737174646768,-500.0,0.00020897,2]
[349423467,1737174646777,-500.0,0.00020897,2]
[349423468,1737174646788,-500.0,0.00020897,2]
[349423469,1737174646799,-293.09519175,0.00020897,2]
[349423470,1737174646810,-500.0,0.00020897,2]
[349423471,1737174646821,-500.0,0.00020897,2]
[349423472,1737174646831,-500.0,0.00020897,2]
[349423473,1737174646841,-389.67997392,0.00020897,2]
[349423474,1737174646852,-500.0,0.00020897,2]
[349423475,1737174646864,-500.0,0.00020897,2]
[349423476,1737174646874,-500.0,0.00020897,2]
[349423477,1737174646884,-500.0,0.00020897,2]
[349423478,1737174646895,-487.74237356,0.00020897,2]
[349423479,1737174646905,-500.0,0.00020897,2]
[349423480,1737174646915,-500.0,0.00020897,2]
[349423481,1737174646925,-500.0,0.00020897,2]
[349423482,1737174646935,-500.0,0.00020897,2]
[349423483,1737174646945,-500.0,0.00020897,2]
[349423484,1737174646955,-500.0,0.00020897,2]
[349423485,1737174646965,-500.0,0.00020897,2]
[349423486,1737174646975,-500.0,0.00020897,2]
[349423487,1737174646985,-500.0,0.00020897,2]
[349423488,1737174646995,-500.0,0.00020897,2]
[349423489,1737174647004,-500.0,0.00020897,2]
[349423490,1737174647014,-1211.18,0.00020897,2]
[349423491,1737174647025,-500.0,0.00020897,2]
[349423492,1737174647037,-500.0,0.00020897,2]
[349423493,1737174647047,-500.0,0.00020897,2]
[349423494,1737174647058,-381.82977229,0.00020897,2]
[349423495,1737174647068,-500.0,0.00020897,2]
[349423496,1737174647080,-500.0,0.00020897,2]
[349423497,1737174647090,-516.12863548,0.00020897,2]
[349423498,1737174647100,-500.0,0.00020897,2]
[349423499,1737174647110,-500.0,0.00020897,2]
[349423500,1737174647120,-500.0,0.00020897,2]
[349423501,1737174647131,-500.0,0.00020897,2]
[349423502,1737174647141,-500.0,0.00020897,2]
[349423503,1737174647153,-701.3,0.00020897,2]
[349423504,1737174647313,-500.0,0.00020897,2]
[349423505,1737174647324,-500.0,0.00020897,2]
[349423506,1737174647334,-500.0,0.00020897,2]
[349423507,1737174647343,-500.0,0.00020897,2]
[349423508,1737174647353,-500.0,0.00020897,2]
[349423509,1737174647363,-500.0,0.00020897,2]
[349423510,1737174647372,-500.0,0.00020897,2]
[349423511,1737174647381,-506.19274385,0.00020897,2]
[349423512,1737174647390,-500.0,0.00020897,2]
[349423513,1737174647399,-500.0,0.00020897,2]
[349423514,1737174647408,-500.0,0.00020897,2]
[349423515,1737174647417,-500.0,0.00020897,2]
[349423516,1737174647427,-500.0,0.00020897,2]
[349423517,1737174647436,-500.0,0.00020897,2]
[349423518,1737174647445,-500.0,0.00020897,2]
[349423519,1737174647454,-500.0,0.00020897,2]
[349423520,1737174647463,-500.0,0.00020897,2]
[349423521,1737174647473,-500.0,0.00020897,2]
[349423522,1737174647482,-583.41195387,0.00020897,2]
[349423523,1737174647490,-500.0,0.00020897,2]
[349423524,1737174647499,-500.0,0.00020897,2]
[349423525,1737174647509,-1135.06,0.00020897,2]
[349423526,1737174647519,-2596.81,0.00020897,2]
[349423527,1737174647528,-2681.17,0.00020897,2]
[349423528,1737174647539,-2615.97,0.00020897,2]
[349423529,1737174647548,-1882.91,0.00020897,2]
[349423530,1737174647557,-507.88589563,0.00020897,7]
[349423531,1737174647567,-500.0,0.00020897,2]
[349423532,1737174647576,-716.49,0.00020897,2]
[349423533,1737174647585,-659.89,0.00020897,2]
[349423534,1737174647595,-794.09,0.00020897,2]
[349423535,1737174647604,-837.12,0.00020897,2]
[349423536,1737174647613,-500.0,0.00020897,2]
[349423537,1737174647622,-500.0,0.00020897,2]
[349423538,1737174647631,-898.55,0.00020897,2]
[349423539,1737174647640,-500.0,0.00020897,2]
[349423540,1737174647650,-500.0,0.00020897,2]
[349423541,1737174647661,-500.0,0.00020897,2]
[349423542,1737174647673,-744.87,0.00020897,2]
[349423543,1737174647683,-1187.63,0.00020897,2]
[349423544,1737174647692,-500.0,0.00020897,2]
[349423545,1737174647702,-954.47,0.00020897,2]
[349423546,1737174647712,-500.0,0.00020897,2]
[349423547,1737174647722,-500.0,0.00020897,2]
[349423548,1737174647732,-1002.52,0.00020897,2]
[349423549,1737174647741,-717.9,0.00020897,2]
[349423550,1737174647751,-500.0,0.00020897,2]
[349423551,1737174647762,-1152.27,0.00020897,2]
[349423552,1737174647772,-3030.8,0.00020897,2]
[349423553,1737174647782,-500.0,0.00020897,2]
[349423554,1737174647793,-504.93362862,0.00020897,2]
[349423555,1737174647807,-500.0,0.00020897,2]
[349423556,1737174647822,-500.0,0.00020897,2]
[349423557,1737174647834,-500.0,0.00020897,2]
[349423558,1737174647844,-500.0,0.00020897,2]
[349423559,1737174647854,-500.0,0.00020897,2]
[349423560,1737174647863,-1199.54,0.00020897,2]
[349423561,1737174647874,-500.0,0.00020897,2]
[349423562,1737174647884,-500.0,0.00020897,2]
[349423563,1737174647893,-500.0,0.00020897,2]
[349423564,1737174647902,-1257.35,0.00020897,2]
[349423565,1737174647911,-1151.33,0.00020897,2]
[349423566,1737174647920,-895.85,0.00020897,2]
[349423567,1737174647929,-500.0,0.00020897,2]
[349423568,1737174647939,-500.0,0.00020897,2]
[349423569,1737174647949,-500.0,0.00020897,2]
[349423570,1737174647958,-154.158162,0.00020897,2]
[349423571,1737174647967,-1202.7,0.00020897,2]
[349423572,1737174647976,-500.0,0.00020897,2]
[349423573,1737174647985,-500.0,0.00020897,2]
[349423574,1737174647994,-500.0,0.00020897,2]
[349423575,1737174648003,-834.33,0.00020897,2]
[349423576,1737174648013,-500.0,0.00020897,2]
[349423577,1737174648026,-500.0,0.00020897,2]
[349423578,1737174648035,-500.0,0.00020897,2]
[349423579,1737174648044,-503.2,0.00020897,2]
[349423580,1737174648053,-500.0,0.00020897,2]
[349423581,1737174648065,-151.0,0.00020897,2]
[349423582,1737174648075,-519.19,0.00020897,2]
[349423583,1737174648084,-628.48,0.00020897,2]
[349423584,1737174648093,-500.0,0.00020897,2]
[349423585,1737174648104,-500.0,0.00020897,2]
[349423586,1737174648113,-500.0,0.00020897,2]
[349423587,1737174648123,-500.0,0.00020897,2]
[349423588,1737174648132,-501.58,0.00020897,2]
[349423589,1737174648141,-500.0,0.00020897,2]
[349423590,1737174648151,-500.0,0.00020897,2]
[349423591,1737174648160,-3032.53,0.00020897,2]
[349423592,1737174648169,-500.0,0.00020897,2]
[349423593,1737174648178,-500.0,0.00020897,2]
[349423594,1737174648187,-4149.44,0.00020897,2]
[349423595,1737174648197,-1039.44,0.00020897,2]
[349423596,1737174648206,-500.0,0.00020897,2]
[349423597,1737174648216,-773.38,0.00020897,2]
[349423598,1737174648226,-4280.24,0.00020897,2]
[349423599,1737174648236,-500.0,0.00020897,2]
[349423600,1737174648245,-511.68,0.00020897,2]
[349423601,1737174648254,-151.0,0.00020897,2]
[349423602,1737174648263,-620.83,0.00020897,2]
[349423603,1737174648273,-151.0,0.00020897,2]
[349423604,1737174648283,-500.0,0.00020897,2]
[349423605,1737174648296,-151.0,0.00020897,2]
[349423606,1737174648306,-500.0,0.00020897,2]
[349423607,1737174648316,-500.0,0.00020897,2]
[349423608,1737174648325,-2619.8,0.00020897,2]
[349423609,1737174648335,-457.35603,0.00020897,2]
[349423610,1737174648344,-966.18,0.00020897,2]
[349423611,1737174648353,-500.0,0.00020897,2]
[349423612,1737174648363,-500.0,0.00020897,2]
[349423613,1737174648372,-151.0,0.00020897,2]
[349423614,1737174648382,-714.06,0.00020897,2]
[349423615,1737174648391,-684.85,0.00020897,2]
[349423616,1737174648400,-457.35603,0.00020897,2]
[349423617,1737174648409,-151.0,0.00020897,2]
[349423618,1737174648419,-500.0,0.00020897,2]
[349423619,1737174648428,-231.270414,0.00020897,2]
[349423620,1737174648439,-500.0,0.00020897,2]
[349423621,1737174648449,-500.0,0.00020897,2]
[349423622,1737174648458,-2280.07,0.00020897,2]
[349423623,1737174648467,-1358.34,0.00020897,2]
[349423624,1737174648477,-500.0,0.00020897,2]
[349423625,1737174648487,-500.0,0.00020897,2]
[349423626,1737174648496,-151.0,0.00020897,2]
[349423627,1737174648505,-10000.0,0.00020897,2]
[349423628,1737174648515,-925.12,0.00020897,2]
[349423629,1737174648524,-10000.0,0.00020897,2]
[349423630,1737174648534,-500.0,0.00020897,2]
[349423631,1737174648544,-834.67,0.00020897,2]
[349423632,1737174648553,-500.0,0.00020897,2]
[349423633,1737174648563,-500.0,0.00020897,2]
[349423634,1737174648572,-500.0,0.00020897,2]
[349423635,1737174648581,-1514.56,0.00020897,2]
[349423636,1737174648591,-10000.0,0.00020897,2]
[349423637,1737174648600,-500.0,0.00020897,2]
[349423638,1737174648610,-500.0,0.00020897,2]
[349423639,1737174648619,-933.81,0.00020897,2]
[349423640,1737174648629,-500.0,0.00020897,2]
[349423641,1737174648639,-500.0,0.00020897,2]
[349423642,1737174648649,-500.0,0.00020897,2]
[349423643,1737174648660,-500.0,0.00020897,2]
[349423644,1737174648670,-500.0,0.00020897,2]
[349423645,1737174648679,-500.0,0.00020897,2]
[349423646,1737174648689,-509.98219789,0.00020897,2]
[349423647,1737174648698,-500.0,0.00020897,2]
[349423648,1737174648707,-500.0,0.00020897,2]
[349423649,1737174648716,-2485.8,0.00020897,2]
[349423650,1737174648726,-500.0,0.00020897,2]
[349423651,1737174648735,-556.89,0.00020897,2]
[349423652,1737174648745,-1304.12,0.00020897,2]
[349423653,1737174648755,-908.58,0.00020897,2]
[349423654,1737174648764,-500.0,0.00020897,2]
[349423655,1737174648774,-151.0,0.00020897,2]
[349423656,1737174648784,-500.0,0.00020897,2]
[349423657,1737174648794,-500.0,0.00020897,2]
[349423658,1737174648803,-151.0,0.00020897,2]
[349423659,1737174648812,-512.65,0.00020897,2]
[349423660,1737174648822,-500.0,0.00020897,2]
[349423661,1737174648831,-500.0,0.00020897,2]
[349423662,1737174648841,-2618.83,0.00020897,2]
[349423663,1737174648850,-500.0,0.00020897,2]
[349423664,1737174648859,-500.0,0.00020897,2]
[349423665,1737174648868,-573.46,0.00020897,2]
[349423666,1737174648878,-500.0,0.00020897,2]
[349423667,1737174648887,-500.0,0.00020897,2]
[349423668,1737174648896,-753.19,0.00020897,2]
[349423669,1737174648906,-500.0,0.00020897,2]
[349423670,1737174648915,-500.0,0.00020897,2]
[349423671,1737174648925,-1445.48,0.00020897,2]
[349423672,1737174648934,-543.22,0.00020897,2]
[349423673,1737174648944,-500.0,0.00020897,2]
[349423674,1737174648953,-500.0,0.00020897,2]
[349423675,1737174648963,-500.0,0.00020897,2]
[349423676,1737174648972,-2120.35,0.00020897,2]
[349423677,1737174648981,-500.0,0.00020897,2]
[349423678,1737174648991,-500.0,0.00020897,2]
[349423679,1737174649000,-500.0,0.00020897,2]
[349423680,1737174649009,-500.0,0.00020897,2]
[349423681,1737174649019,-803.96,0.00020897,2]
[349423682,1737174649032,-500.0,0.00020897,2]
[349423683,1737174649043,-500.0,0.00020897,2]
[349423684,1737174649053,-500.0,0.00020897,2]
[349423685,1737174649063,-799.62,0.00020897,2]
[349423686,1737174649074,-916.46,0.00020897,2]
[349423687,1737174649083,-721.83,0.00020897,2]
[349423688,1737174649093,-595.71,0.00020897,2]
[349423689,1737174649103,-500.0,0.00020897,2]
[349423690,1737174649112,-500.0,0.00020897,2]
[349423691,1737174649122,-500.0,0.00020897,2]
[349423692,1737174649131,-500.0,0.00020897,2]
[349423693,1737174649141,-500.0,0.00020897,2]
[349423694,1737174649151,-500.0,0.00020897,2]
[349423695,1737174649161,-500.0,0.00020897,2]
[349423696,1737174649170,-500.0,0.00020897,2]
[349423697,1737174649180,-504.73,0.00020897,2]
[349423698,1737174649190,-500.0,0.00020897,2]
[349423699,1737174649200,-500.0,0.00020897,2]
[349423700,1737174649209,-2730.64,0.00020897,2]
[349423701,1737174649218,-500.0,0.00020897,2]
[349423702,1737174649227,-500.0,0.00020897,2]
[349423703,1737174649237,-500.0,0.00020897,2]
[349423704,1737174649246,-500.0,0.00020897,2]
[349423705,1737174649256,-500.0,0.00020897,2]
[349423706,1737174649266,-500.0,0.00020897,2]
[349423707,1737174649277,-500.0,0.00020897,2]
[349423708,1737174649287,-503.50501911,0.00020897,2]
[349423709,1737174649297,-527.86,0.00020897,2]
[349423710,1737174649306,-500.0,0.00020897,2]
[349423711,1737174649315,-926.03,0.00020897,2]
[349423712,1737174649324,-500.0,0.00020897,2]
[349423713,1737174649333,-759.73,0.00020897,2]
[349423714,1737174649342,-500.0,0.00020897,2]
[349423715,1737174649351,-500.0,0.00020897,2]
[349423716,1737174649361,-223.23410155,0.00020898,2]
[349423717,1737174649371,-271.79296557,0.00020898,2]
[349423718,1737174649381,-416.28,0.00020898,2]
[349423719,1737174649390,-1211.18,0.00020898,2]
[349423720,1737174649400,-500.0,0.00020898,2]
[349423721,1737174649409,-484.93443819,0.00020898,2]
[349423722,1737174649418,-500.0,0.00020898,2]
[349423723,1737174649428,-500.0,0.00020898,2]
[349423724,1737174649438,-500.0,0.00020898,2]
[349423725,1737174649448,-500.0,0.00020898,2]
[349423726,1737174649458,-500.0,0.00020898,2]
[349423727,1737174649468,-500.0,0.00020898,2]
[349423728,1737174649477,-500.0,0.00020898,2]
[349423729,1737174649486,-500.0,0.00020898,2]
[349423730,1737174649495,-500.0,0.00020898,2]
[349423731,1737174649506,-500.0,0.00020898,2]
[349423732,1737174649516,-500.0,0.00020898,2]
[349423733,1737174649526,-500.0,0.00020898,2]
[349423734,1737174649536,-500.0,0.00020898,2]
[349423735,1737174649546,-500.0,0.00020898,2]
[349423736,1737174649555,-500.0,0.00020898,2]
[349423737,1737174649565,-500.0,0.00020898,2]
[349423738,1737174649575,-500.0,0.00020898,2]
[349423739,1737174649584,-500.0,0.00020898,2]
[349423740,1737174649593,-500.0,0.00020898,2]
[349423741,1737174649603,-387.00049536,0.00020898,2]
[349423742,1737174649612,-541.56222849,0.00020898,2]
[349423743,1737174649622,-633.51,0.00020898,2]
[349423744,1737174649631,-500.0,0.00020898,2]
[349423745,1737174649641,-500.0,0.00020898,2]
[349423746,1737174649651,-500.0,0.00020898,2]
[349423747,1737174649660,-547.43,0.00020898,2]
[349423748,1737174649670,-500.0,0.00020898,2]
[349423749,1737174649679,-500.0,0.00020898,2]
[349423750,1737174649688,-500.0,0.00020898,2]
[349423751,1737174649698,-500.0,0.00020898,2]
[349423752,1737174649707,-500.0,0.00020898,2]
[349423753,1737174649717,-500.0,0.00020898,2]
[349423754,1737174649727,-500.0,0.00020898,2]
[349423755,1737174649737,-500.0,0.00020898,2]
[349423756,1737174649747,-500.0,0.00020898,2]
[349423757,1737174649757,-251.19548223,0.00020898,2]
[349423758,1737174649767,-500.0,0.00020898,2]
[349423759,1737174649776,-500.0,0.00020898,2]
[349423760,1737174649786,-500.0,0.00020898,2]
[349423761,1737174649795,-500.0,0.00020898,2]
[349423762,1737174649805,-1135.06,0.00020898,2]
[349423763,1737174649815,-500.0,0.00020898,2]
[349423764,1737174649824,-500.0,0.00020898,2]
[349423765,1737174649834,-500.0,0.00020898,2]
[349423766,1737174649843,-2596.81,0.00020898,2]
[349423767,1737174649852,-500.0,0.00020898,2]
[349423768,1737174649862,-500.0,0.00020898,2]
[349423769,1737174649871,-500.0,0.00020898,2]
[349423770,1737174649881,-500.0,0.00020898,2]
[349423771,1737174649891,-500.0,0.00020898,2]
[349423772,1737174649900,-500.0,0.00020898,2]
[349423773,1737174649910,-2681.17,0.00020898,2]
[349423774,1737174649920,-500.0,0.00020898,2]
[349423775,1737174649930,-151.0,0.00020898,2]
[349423776,1737174649940,-151.0,0.00020898,2]
[349423777,1737174649950,-2615.97,0.00020898,2]
[349423778,1737174649959,-1882.91,0.00020898,2]
[349423779,1737174649969,-884.31,0.00020898,2]
[349423780,1737174649979,-2279.54,0.00020898,2]
[349423781,1737174649989,-500.0,0.00020898,2]
[349423782,1737174649999,-151.0,0.00020898,2]
[349423783,1737174650008,-1295.34,0.00020898,2]
[349423784,1737174650021,-500.0,0.00020898,2]
[349423785,1737174650032,-1280.37,0.00020898,2]
[349423786,1737174650043,-716.49,0.00020898,2]
[349423787,1737174650052,-659.89,0.00020898,2]
[349423788,1737174650062,-692.773005,0.00020898,2]
[349423789,1737174650073,-692.773005,0.00020898,2]
[349423790,1737174650083,-794.09,0.00020898,2]
[349423791,1737174650092,-837.12,0.00020898,2]
[349423792,1737174650102,-500.0,0.00020898,2]
[349423793,1737174650113,-151.0,0.00020898,2]
[349423794,1737174650123,-898.55,0.00020898,2]
[349423795,1737174650133,-500.0,0.00020898,2]
[349423796,1737174650143,-744.87,0.00020898,2]
[349423797,1737174650152,-500.0,0.00020898,2]
[349423798,1737174650161,-1187.63,0.00020898,2]
[349423799,1737174650171,-954.47,0.00020898,2]
[349423800,1737174650181,-151.0,0.00020898,2]
[349423801,1737174650191,-500.0,0.00020898,2]
[349423802,1737174650201,-151.0,0.00020898,2]
[349423803,1737174650211,-1152.27,0.00020898,2]
[349423804,1737174650220,-500.0,0.00020898,2]
[349423805,1737174650230,-500.0,0.00020898,2]
[349423806,1737174650239,-500.0,0.00020898,2]
[349423807,1737174650249,-500.0,0.00020898,2]
[349423808,1737174650259,-500.0,0.00020898,2]
[349423809,1737174650268,-500.0,0.00020898,2]
[349423810,1737174650277,-500.0,0.00020898,2]
[349423811,1737174650288,-500.0,0.00020898,2]
[349423812,1737174650298,-500.0,0.00020898,2]
[349423813,1737174650308,-153.059962,0.00020898,2]
[349423814,1737174650317,-500.0,0.00020898,2]
[349423815,1737174650326,-500.0,0.00020898,2]
[349423816,1737174650336,-500.0,0.00020898,2]
[349423817,1737174650346,-151.0,0.00020898,2]
[349423818,1737174650357,-500.0,0.00020898,2]
[349423819,1737174650366,-500.0,0.00020898,2]
[349423820,1737174650376,-503.2,0.00020898,2]
[349423821,1737174650386,-500.0,0.00020898,2]
[349423822,1737174650395,-500.0,0.00020898,2]
[349423823,1737174650407,-500.0,0.00020898,2]
[349423824,1737174650416,-500.0,0.00020898,2]
[349423825,1737174650426,-1039.44,0.00020898,2]
[349423826,1737174650435,-500.0,0.00020898,2]
[349423827,1737174650446,-500.0,0.00020898,2]
[349423828,1737174650457,-511.68,0.00020898,2]
[349423829,1737174650467,-500.0,0.00020898,2]
[349423830,1737174650476,-966.18,0.00020898,2]
[349423831,1737174650485,-1358.34,0.00020898,2]
[349423832,1737174650495,-500.0,0.00020898,2]
[349423833,1737174650504,-500.0,0.00020898,2]
[349423834,1737174650514,-555.12672468,0.00020898,2]
[349423835,1737174650523,-933.81,0.00020898,2]
[349423836,1737174650533,-500.0,0.00020898,2]
[349423837,1737174650544,-500.0,0.00020898,2]
[349423838,1737174650553,-1304.12,0.00020898,2]
[349423839,1737174650562,-500.0,0.00020898,2]
[349423840,1737174650572,-2618.83,0.00020898,2]
[349423841,1737174650581,-500.0,0.00020898,2]
[349423842,1737174650590,-500.0,0.00020898,2]
[349423843,1737174650600,-753.19,0.00020898,2]
[349423844,1737174650610,-543.22,0.00020898,2]
[349423845,1737174650619,-500.0,0.00020898,2]
[349423846,1737174650629,-500.0,0.00020898,2]
[349423847,1737174650640,-500.0,0.00020898,2]
[349423848,1737174650652,-151.0,0.00020898,2]
[349423849,1737174650800,-916.46,0.00020898,2]
[349423850,1737174650810,-500.0,0.00020898,2]
[349423851,1737174650819,-500.0,0.00020898,2]
[349423852,1737174650828,-500.0,0.00020898,2]
[349423853,1737174650838,-500.0,0.00020898,2]
[349423854,1737174650847,-500.0,0.00020898,2]
[349423855,1737174650857,-330.789281,0.00020898,2]
[349423856,1737174650867,-151.0,0.00020898,2]
[349423857,1737174650876,-330.789281,0.00020898,2]
[349423858,1737174650885,-151.0,0.00020898,2]
[349423859,1737174650895,-151.972208,0.00020898,2]
[349423860,1737174650904,-527.86,0.00020898,2]
[349423861,1737174650914,-500.0,0.00020898,2]
[349423862,1737174650923,-299.778187,0.00020898,2]
[349423863,1737174650933,-151.0,0.00020898,2]
[349423864,1737174650943,-299.778187,0.00020898,2]
[349423865,1737174650952,-500.0,0.00020898,2]
[349423866,1737174650962,-151.0,0.00020898,2]
[349423867,1737174650971,-761.01807379,0.00020899,2]
[349423868,1737174650981,-500.0,0.00020899,2]
[349423869,1737174650990,-400.58162573,0.00020899,2]
[349423870,1737174650999,-644.72228677,0.00020899,2]
[349423871,1737174651009,-506.84740709,0.00020899,2]
[349423872,1737174651019,-500.0,0.00020899,2]
[349423873,1737174651031,-349.72830505,0.00020899,2]
[349423874,1737174651041,-501.38226489,0.00020899,2]
[349423875,1737174651051,-523.6,0.00020899,2]
[349423876,1737174651060,-500.0,0.00020899,2]
[349423877,1737174651070,-810.72,0.00020899,2]
[349423878,1737174651079,-500.0,0.00020899,2]
[349423879,1737174651089,-500.0,0.00020899,2]
[349423880,1737174651099,-500.0,0.00020899,2]
[349423881,1737174651110,-500.0,0.00020899,2]
[349423882,1737174651120,-500.0,0.00020899,2]
[349423883,1737174651130,-500.0,0.00020899,2]
[349423884,1737174651139,-500.0,0.00020899,2]
[349423885,1737174651149,-500.0,0.00020899,2]
[349423886,1737174651158,-500.0,0.00020899,2]